fUST/lending_fUST_20250813
["ID","MTS","AMOUNT","RATE_DAILY","PERIOD"]
[378806757,1755029434850,-461.76100612,0.000214,3]
[378806758,1755029434859,-151.0,0.000214,2]
[378806759,1755029434868,-215.52532928,0.000214,3]
[378806760,1755029434878,-160.0,0.000214,3]
[378806761,1755029434887,-528.03329096,0.000214,3]
[378806762,1755029434896,-417.15472785,0.000214,3]
[378806763,1755029434906,-2000.0,0.00021416,2]
[378806764,1755029434915,-2000.0,0.00021416,2]
[378806765,1755029434925,-2000.0,0.00021416,2]
[378806766,1755029434934,-2000.0,0.00021416,2]
[378806767,1755029434943,-528.03329096,0.00021427,2]
[378806768,1755029434952,-843.25559725,0.00021427,2]
[378806769,1755029434961,-160.0,0.00021427,2]
[378806770,1755029434971,-417.15472785,0.00021427,2]
[378806771,1755029434980,-160.0,0.00021427,2]
[378806772,1755029434989,-160.0,0.00021428,2]
[378806773,1755029434998,-215.52532928,0.00021428,2]
[378806774,1755029435008,-160.0,0.00021428,2]
[378806775,1755029435017,-160.0,0.00021428,2]
[378806776,1755029435027,-232.0176383,0.00021428,2]
[378806777,1755029435036,-461.76100612,0.00021428,2]
[378806778,1755029435045,-2200.0,0.00021438,2]
[378806779,1755029435054,-216.70963917,0.00021445,2]
[378806780,1755029435064,-4275.83453573,0.00021457,7]
[378806781,1755029435074,-435.17563623,0.00021473,2]
[378806782,1755029435083,-173.33828355,0.00021473,2]
[378806783,1755029435092,-500.0,0.00021473,2]
[378806784,1755029435102,-500.0,0.00021473,2]
[378806785,1755029435111,-500.0,0.00021473,2]
[378806786,1755029435120,-500.0,0.00021473,2]
[378806787,1755029435129,-500.0,0.00021473,2]
[378806788,1755029435138,-500.0,0.00021473,2]
[378806789,1755029435148,-500.0,0.00021473,2]
[378806790,1755029435160,-500.0,0.00021473,2]
[378806791,1755029435169,-500.0,0.00021473,2]
[378806792,1755029435179,-500.0,0.00021473,2]
[378806793,1755029435188,-500.0,0.00021473,2]
[378806794,1755029435199,-500.0,0.00021473,2]
[378806795,1755029435209,-500.0,0.00021473,2]
[378806796,1755029435218,-500.0,0.00021473,2]
[378806797,1755029435227,-500.0,0.00021473,2]
[378806798,1755029435237,-500.0,0.00021473,2]
[378806799,1755029435246,-500.0,0.00021473,2]
[378806800,1755029435255,-150.0,0.00021473,2]
[378806801,1755029435264,-500.0,0.00021473,2]
[378806802,1755029435273,-500.0,0.00021473,2]
[378806803,1755029435283,-500.0,0.00021473,2]
[378806804,1755029435292,-500.0,0.00021473,2]
[378806805,1755029435301,-500.0,0.00021473,2]
[378806806,1755029435310,-500.0,0.00021473,2]
[378806807,1755029435321,-500.0,0.00021473,2]
[378806808,1755029435330,-500.0,0.00021473,2]
[378806809,1755029435340,-500.0,0.00021473,2]
[378806810,1755029435349,-500.0,0.00021473,2]
[378806811,1755029435358,-500.0,0.00021473,2]
[378806812,1755029435368,-500.0,0.00021473,2]
[378806813,1755029435377,-500.0,0.00021473,2]
[378806814,1755029435387,-500.0,0.00021473,2]
[378806815,1755029435396,-500.0,0.00021473,2]
[378806816,1755029435405,-500.0,0.00021473,2]
[378806817,1755029435414,-503.67486532,0.00021473,2]
[378806818,1755029435423,-500.0,0.00021473,2]
[378806819,1755029435433,-500.0,0.00021473,2]
[378806820,1755029435443,-500.0,0.00021473,2]
[378806821,1755029435452,-500.0,0.00021473,2]
[378806822,1755029435462,-500.0,0.00021473,2]
[378806823,1755029435471,-500.0,0.00021473,2]
[378806824,1755029435480,-500.0,0.00021473,2]
[378806825,1755029435489,-500.0,0.00021473,2]
[378806826,1755029435499,-500.0,0.00021473,2]
[378806827,1755029435509,-500.0,0.00021473,2]
[378806828,1755029435519,-500.0,0.00021473,2]
[378806829,1755029435528,-500.0,0.00021473,2]
[378806830,1755029435538,-500.0,0.00021473,2]
[378806831,1755029435547,-500.0,0.00021473,2]
[378806832,1755029435557,-151.0,0.00021475,2]
[378806833,1755029435566,-151.0,0.00021475,2]
[378806834,1755029435576,-587.0,0.00021475,2]
[378806835,1755029435585,-460.0,0.0002148,2]
[378806836,1755029435595,-110096.36,0.000215,2]
[378806837,1755029435605,-82974.07,0.000215,2]
[378806838,1755029435615,-120779.43,0.000215,2]
[378806839,1755029435624,-151.0,0.000215,2]
[378806840,1755029435633,-151.0,0.000215,2]
[378806841,1755029435643,-151.0,0.000215,2]
[378806842,1755029435653,-151.0,0.000215,2]
[378806843,1755029435662,-151.0,0.000215,2]
[378806844,1755029435672,-151.0,0.000215,2]
[378806845,1755029435681,-151.0,0.000215,2]
[378806846,1755029435691,-151.0,0.000215,2]
[378806847,1755029435700,-151.0,0.000215,2]
[378806848,1755029435711,-151.0,0.000215,2]
[378806849,1755029435721,-151.0,0.000215,2]
[378806850,1755029435730,-184.242405,0.000215,2]
[378806851,1755029435740,-151.0,0.000215,2]
[378806852,1755029435749,-162.65333618,0.00021534,2]
[378806853,1755029435759,-162.65333618,0.00021534,2]
[378806854,1755029435769,-162.65333619,0.00021534,2]
[378806855,1755029435778,-1017.15,0.000216,2]
[378806856,1755029435787,-645.0,0.000216,2]
[378806857,1755029435796,-168.0,0.00021633,2]
[378806858,1755029435806,-319.956,0.00021644,2]
[378806859,1755029435815,-54715.53457188,0.00021655,2]
[378806860,1755029435825,-151.0,0.00021655,2]
[378806861,1755029435834,-4000.0,0.00021788,4]
[378806862,1755029435843,-162.65333618,0.00021808,2]
[378806863,1755029435852,-162.65333618,0.00021808,2]
[378806864,1755029435862,-168.0,0.00021864,2]
[378806865,1755029435871,-9132.83780873,0.00021912,2]
[378806866,1755029435880,-500.0,0.00021917,2]
[378806867,1755029435889,-461.730174,0.00021918,2]
[378806868,1755029435898,-461.730174,0.00021918,2]
[378806869,1755029435907,-461.730174,0.00021918,2]
[378806870,1755029435916,-461.730174,0.00021918,2]
[378806871,1755029435925,-461.730174,0.00021918,2]
[378806872,1755029435935,-461.730174,0.00021918,2]
[378806873,1755029435944,-461.730174,0.00021918,2]
[378806874,1755029435953,-461.730174,0.00021918,2]
[378806875,1755029435962,-461.730174,0.00021918,2]
[378806876,1755029435971,-461.730174,0.00021918,2]
[378806877,1755029435981,-200.0,0.00021918,2]
[378806878,1755029435991,-637.5642265,0.00021924,2]
[378806879,1755029436002,-2500.0,0.00021964,2]
[378806880,1755029436012,-857.07914186,0.00021964,2]
[378806881,1755029436022,-2500.0,0.00021964,2]
[378806882,1755029436032,-2500.0,0.00021964,2]
[378806883,1755029436042,-461.730174,0.00021973,7]
[378806884,1755029436050,-461.730174,0.00021973,7]
[378806885,1755029436059,-151.0,0.00021979,3]
[378806886,1755029436069,-151.0,0.0002199,7]
[378806887,1755029436078,-2000.0,0.00022,2]
[378806888,1755029436088,-422.92,0.00022,2]
[378806889,1755029436097,-1100.0,0.00022004,2]
[378806890,1755029436106,-1144.55624493,0.00022021,2]
[378806891,1755029436115,-464.92875108,0.00022021,2]
[378806892,1755029436124,-1000.0,0.00022021,2]
[378806893,1755029436133,-1000.0,0.00022021,2]
[378806894,1755029436143,-1000.0,0.00022021,2]
[378806895,1755029436154,-500.0,0.00022021,2]
[378806896,1755029436164,-500.00000001,0.00022021,2]
[378806897,1755029436173,-500.0,0.00022021,2]
[378806898,1755029436183,-500.0,0.00022021,2]
[378806899,1755029436192,-500.62438733,0.00022021,2]
[378806900,1755029436202,-1000.0,0.00022021,2]
[378806901,1755029436212,-1000.0,0.00022021,2]
[378806902,1755029436222,-1000.0,0.00022021,2]
[378806903,1755029436232,-1000.0,0.00022021,2]
[378806904,1755029436242,-1000.0,0.00022021,2]
[378806905,1755029436252,-277.34792382,0.00022021,2]
[378806906,1755029436261,-1000.0,0.00022021,2]
[378806907,1755029436272,-250.0,0.00022021,2]
[378806908,1755029436282,-500.0,0.00022021,2]
[378806909,1755029436291,-500.0,0.00022021,2]
[378806910,1755029436300,-1000.0,0.00022021,2]
[378806911,1755029436310,-500.0,0.00022021,2]
[378806912,1755029436320,-1045.96642054,0.00022021,2]
[378806913,1755029436329,-1000.0,0.00022021,2]
[378806914,1755029436339,-500.0,0.00022021,2]
[378806915,1755029436347,-1000.0,0.00022021,2]
[378806916,1755029436357,-500.0,0.00022021,2]
[378806917,1755029436366,-500.0,0.00022021,2]
[378806918,1755029436375,-1000.0,0.00022021,2]
[378806919,1755029436385,-1000.0,0.00022021,2]
[378806920,1755029436394,-500.0,0.00022021,2]
[378806921,1755029436403,-1000.0,0.00022021,2]
[378806922,1755029436412,-592.7304855,0.00022021,2]
[378806923,1755029436422,-500.0,0.00022021,2]
[378806924,1755029436431,-500.0,0.00022021,2]
[378806925,1755029436440,-1000.0,0.00022021,2]
[378806926,1755029436450,-1000.0,0.00022021,2]
[378806927,1755029436460,-1012.97111923,0.00022021,2]
[378806928,1755029436470,-1008.43518532,0.00022021,2]
[378806929,1755029436480,-616.00455131,0.00022021,2]
[378806930,1755029436491,-500.0,0.00022021,2]
[378806931,1755029436500,-500.0,0.00022021,2]
[378806932,1755029436509,-500.0,0.00022021,2]
[378806933,1755029436519,-500.92555902,0.00022021,2]
[378806934,1755029436528,-500.0,0.00022021,2]
[378806935,1755029436538,-1000.0,0.00022021,2]
[378806936,1755029436548,-151.0,0.00022021,7]
[378806937,1755029436557,-151.0,0.00022021,7]
[378806938,1755029436566,-560.0,0.00022027,2]
[378806939,1755029436576,-168.0,0.00022031,2]
[378806940,1755029436586,-317.0,0.00022034,2]
[378806941,1755029436596,-19187.29552238,0.00022056,2]
[378806942,1755029436726,-162.65333618,0.00022082,2]
[378806943,1755029436736,-162.65333618,0.00022082,2]
[378806944,1755029436746,-168.0,0.00022106,2]
[378806945,1755029436755,-500.0,0.00022143,8]
[378806946,1755029436765,-200.0,0.0002216,4]
[378806947,1755029436774,-500.0,0.00022162,8]
[378806948,1755029436783,-317.0,0.00022174,2]
[378806949,1755029436793,-200.0,0.00022195,15]
[378806950,1755029436802,-200.0,0.00022195,15]
[378806951,1755029436811,-200.0,0.00022195,15]
[378806952,1755029436820,-200.0,0.00022195,15]
[378806953,1755029436830,-200.0,0.00022195,15]
[378806954,1755029436839,-200.0,0.00022195,15]
[378806955,1755029436849,-366.0,0.00022195,15]
[378806956,1755029436859,-168.0,0.00022218,2]
[378806957,1755029436869,-455.55518734,0.00022243,2]
[378806958,1755029436879,-1822.22074936,0.00022243,2]
[378806959,1755029436888,-4099.99668606,0.00022243,2]
[378806960,1755029436897,-7281.59411445,0.00022243,2]
[378806961,1755029436907,-518.10368252,0.00022243,2]
[378806962,1755029436916,-2072.41473007,0.00022243,2]
[378806963,1755029436925,-4658.27020952,0.00022243,2]
[378806964,1755029436934,-151.0,0.00022243,7]
[378806965,1755029436944,-461.730174,0.00022243,7]
[378806966,1755029436953,-461.730174,0.00022243,7]
[378806967,1755029436963,-150.0,0.000223,5]
[378806968,1755029436972,-151.0,0.00022302,3]
[378806969,1755029436982,-325.0,0.00022308,3]
[378806970,1755029436991,-170.1117116,0.00022308,3]
[378806971,1755029437000,-1211.33469865,0.00022308,3]
[378806972,1755029437009,-168.0,0.00022406,2]
[378806973,1755029437018,-168.0,0.00022495,2]
[378806974,1755029437027,-3000.0,0.00022512,2]
[378806975,1755029437036,-3000.0,0.00022512,2]
[378806976,1755029437045,-3000.0,0.00022512,2]
[378806977,1755029437054,-218.11712398,0.00022517,2]
[378806978,1755029437063,-151.0,0.00022517,2]
[378806979,1755029437073,-151.0,0.00022517,2]
[378806980,1755029437082,-151.0,0.00022517,2]
[378806981,1755029437091,-151.0,0.00022517,2]
[378806982,1755029437100,-151.0,0.00022517,2]
[378806983,1755029437109,-674.0,0.00022517,2]
[378806984,1755029437118,-1079.0,0.00022517,2]
[378806985,1755029437127,-1500.0,0.00022568,2]
[378806986,1755029437136,-1500.0,0.00022568,2]
[378806987,1755029437146,-186.18187767,0.00022568,2]
[378806988,1755029437158,-653.11062252,0.00022568,2]
[378806989,1755029437168,-1500.0,0.00022568,2]
[378806990,1755029437178,-1500.0,0.00022568,2]
[378806991,1755029437188,-1500.0,0.00022568,2]
[378806992,1755029437197,-734.78952573,0.00022568,2]
[378806993,1755029437207,-350.0,0.00022568,2]
[378806994,1755029437216,-1500.0,0.00022568,2]
[378806995,1755029437226,-1500.0,0.00022568,2]
[378806996,1755029437237,-1500.0,0.00022568,2]
[378806997,1755029437247,-1338.25542801,0.00022568,2]
[378806998,1755029437257,-1500.0,0.00022568,2]
[378806999,1755029437266,-737.51074959,0.00022568,2]
[378807000,1755029437275,-1500.0,0.00022568,2]
[378807001,1755029437285,-1500.0,0.00022568,2]
[378807002,1755029437294,-660.0,0.00022575,2]
[378807003,1755029437303,-168.0,0.00022588,2]
[378807004,1755029437312,-400.0,0.00022603,2]
[378807005,1755029437321,-317.0,0.00022612,2]
[378807006,1755029437331,-151.0,0.00022626,3]
[378807007,1755029437340,-168.0,0.00022664,2]
[378807008,1755029437349,-168.0,0.00022729,2]
[378807009,1755029437358,-317.0,0.00022762,2]
[378807010,1755029437367,-674.0,0.00022791,2]
[378807011,1755029437376,-1079.0,0.00022791,2]
[378807012,1755029437386,-168.0,0.00022795,2]
[378807013,1755029437395,-300.9115811,0.000228,2]
[378807014,1755029437404,-168.0,0.00022828,2]
[378807015,1755029437414,-160.0,0.00022863,5]
[378807016,1755029437423,-5183.04638723,0.0002291,2]
[378807017,1755029437433,-5000.0,0.0002291,2]
[378807018,1755029437442,-5000.0,0.0002291,2]
[378807019,1755029437451,-5000.0,0.0002291,2]
[378807020,1755029437460,-5000.0,0.0002291,2]
[378807021,1755029437469,-151.0,0.0002291,7]
[378807022,1755029437479,-151.0,0.0002291,7]
[378807023,1755029437488,-317.0,0.0002292,2]
[378807024,1755029437497,-151.0,0.00022951,7]
[378807025,1755029437506,-5264.86973318,0.00022951,2]
[378807026,1755029437516,-168.0,0.00022955,2]
[378807027,1755029437525,-168.0,0.00022965,2]
[378807028,1755029437535,-150.0,0.00022973,2]
[378807029,1755029437545,-500.0,0.00022973,2]
[378807030,1755029437555,-150.61277924,0.00022973,2]
[378807031,1755029437564,-461.730174,0.00022981,7]
[378807032,1755029437575,-461.730174,0.00022981,7]
[378807033,1755029437585,-5000.0,0.00022981,2]
[378807034,1755029437595,-5000.0,0.00022981,2]
[378807035,1755029437604,-5000.0,0.00022981,2]
[378807036,1755029437614,-5000.0,0.00022982,2]
[378807037,1755029437623,-5000.0,0.00022982,2]
[378807038,1755029437633,-5000.0,0.00022982,2]
[378807039,1755029437643,-5000.0,0.00022982,2]
[378807040,1755029437653,-151.0,0.00022982,7]
[378807041,1755029437662,-160.0,0.00023,3]
[378807042,1755029437674,-11694.18026196,0.00023,2]
[378807043,1755029437684,-160.0,0.00023,3]
[378807044,1755029437694,-84791.94,0.00023,7]
[378807045,1755029437703,-15464.12,0.00023,7]
[378807046,1755029437713,-7018.92,0.00023,7]
[378807047,1755029437722,-2000.0,0.00023,2]
[378807048,1755029437732,-12673.43806534,0.00023,7]
[378807049,1755029437741,-461.76100612,0.00023,7]
[378807050,1755029437750,-160.0,0.00023,2]
[378807051,1755029437760,-232.0176383,0.00023,3]
[378807052,1755029437770,-151.0,0.00023,7]
[378807053,1755029437779,-151.0,0.00023,7]
[378807054,1755029437788,-215.52532928,0.00023,7]
[378807055,1755029437798,-160.0,0.00023,3]
[378807056,1755029437807,-160.0,0.00023,3]
[378807057,1755029437816,-160.0,0.00023,3]
[378807058,1755029437826,-151.0,0.00023,7]
[378807059,1755029437836,-168.0,0.00023,7]
[378807060,1755029437844,-160.0,0.00023,3]
[378807061,1755029437854,-461.730174,0.00023,7]
[378807062,1755029437863,-461.730174,0.00023,7]
[378807063,1755029437873,-160.0,0.00023,7]
[378807064,1755029437883,-216.70963917,0.00023,3]
[378807065,1755029437892,-160.0,0.00023,3]
[378807067,1755029437905,-528.03329096,0.00023,7]
[378807068,1755029437915,-843.25559725,0.00023,3]
[378807069,1755029437924,-417.15472785,0.00023,7]
[378807070,1755029437934,-552.0,0.00023,7]
[378807071,1755029437944,-317.0,0.00023019,2]
[378807072,1755029437953,-3500.0,0.0002306,2]
[378807073,1755029437963,-3500.0,0.0002306,2]
[378807074,1755029437972,-3500.0,0.0002306,2]
[378807075,1755029437982,-674.0,0.00023065,2]
[378807076,1755029437991,-1079.0,0.00023065,2]
[378807077,1755029438000,-1100.0,0.000231,2]
[378807079,1755029438009,-67733.81,0.000231,2]
[378807080,1755029438018,-151.0,0.000231,7]
[378807082,1755029438027,-157.130327,0.000231,7]
[378807084,1755029438036,-151.0,0.000231,7]
[378807085,1755029438045,-461.730174,0.000231,7]
[378807086,1755029438055,-461.730166,0.000231,7]
[378807087,1755029438064,-150.0,0.00023113,2]
[378807088,1755029438075,-150.0,0.00023113,2]
[378807089,1755029438088,-150.0,0.00023113,2]
[378807090,1755029438098,-150.0,0.00023113,2]
[378807091,1755029438108,-636.0,0.00023113,2]
[378807092,1755029438117,-971.0,0.00023113,2]
[378807093,1755029438128,-2151.0,0.00023113,2]
[378807095,1755029438137,-250.70139098,0.00023116,2]
[378807096,1755029438147,-2000.0,0.00023116,2]
[378807097,1755029438160,-676.41425642,0.00023116,2]
[378807098,1755029438170,-752.07354889,0.00023116,2]
[378807100,1755029438181,-2000.0,0.00023116,2]
[378807102,1755029438191,-450.0,0.00023116,2]
[378807103,1755029438201,-2000.0,0.00023116,2]
[378807104,1755029438211,-2000.0,0.00023116,2]
[378807105,1755029438221,-2000.0,0.00023116,2]
[378807107,1755029438230,-2000.0,0.00023116,2]
[378807109,1755029438240,-2000.0,0.00023116,2]
[378807110,1755029438252,-2000.0,0.00023116,2]
[378807111,1755029438261,-760.0,0.00023123,2]
[378807112,1755029438271,-5000.0,0.00023142,2]
[378807114,1755029438280,-150.0,0.00023203,2]
[378807115,1755029438289,-317.0,0.00023229,2]
[378807117,1755029438298,-500.0,0.0002327,2]
[378807119,1755029438308,-3929.09,0.00023287,4]
[378807120,1755029438317,-1121.589409,0.00023288,2]
[378807121,1755029438328,-151.0,0.00023288,7]
[378807123,1755029438337,-151.0,0.00023288,7]
[378807125,1755029438347,-151.0,0.00023288,7]
[378807126,1755029438356,-245.0,0.00023288,7]
[378807127,1755029438366,-600.0,0.00023288,2]
[378807128,1755029438375,-552.0,0.00023288,7]
[378807129,1755029438384,-317.0,0.00023304,2]
[378807130,1755029438393,-11110.91078827,0.0002333,2]
[378807131,1755029438403,-674.0,0.00023339,2]
[378807132,1755029438412,-1079.0,0.00023339,2]
[378807133,1755029438422,-637.5642265,0.00023347,2]
[378807134,1755029438431,-317.0,0.00023365,2]
[378807135,1755029438440,-151.0,0.00023409,7]
[378807136,1755029438450,-54715.53457188,0.00023409,2]
[378807137,1755029438459,-317.0,0.00023419,2]
[378807138,1755029438468,-19897.22545671,0.00023425,2]
[378807139,1755029438478,-823.0,0.0002343,2]
[378807140,1755029438488,-500.0,0.00023456,2]
[378807141,1755029438497,-175.94945499,0.00023479,10]
[378807142,1755029438506,-168.0,0.00023488,2]
[378807143,1755029438515,-1000.0,0.000235,2]
[378807144,1755029438524,-1806.0,0.000235,3]
[378807145,1755029438533,-160.0,0.000235,3]
[378807146,1755029438543,-300.0,0.00023521,2]
[378807147,1755029438552,-300.0,0.00023596,2]
[378807148,1755029438561,-157.06970312,0.00023596,2]
[378807149,1755029438572,-150.0,0.00023596,2]
[378807150,1755029438581,-4000.0,0.00023608,2]
[378807151,1755029438591,-4000.0,0.00023608,2]
[378807152,1755029438600,-4000.0,0.00023608,2]
[378807153,1755029438610,-674.0,0.00023613,2]
[378807154,1755029438619,-1079.0,0.00023613,2]
[378807155,1755029438628,-2066.29,0.00023641,2]
[378807156,1755029438637,-151.0,0.00023664,7]
[378807157,1755029438647,-2500.0,0.00023664,2]
[378807158,1755029438656,-2500.0,0.00023664,2]
[378807159,1755029438665,-550.0,0.00023664,2]
[378807160,1755029438674,-631.49928016,0.00023664,2]
[378807161,1755029438684,-2500.0,0.00023664,2]
[378807162,1755029438694,-2500.0,0.00023664,2]
[378807163,1755029438703,-2500.0,0.00023664,2]
[378807164,1755029438712,-2500.0,0.00023664,2]
[378807165,1755029438722,-2500.0,0.00023664,2]
[378807166,1755029438731,-200.0,0.0002367,8]
[378807167,1755029438743,-860.0,0.00023671,2]
[378807168,1755029438753,-8652.11111805,0.00023728,2]
[378807169,1755029438762,-14729.50921258,0.0002374,2]
[378807170,1755029438772,-2960.92662572,0.0002376,2]
[378807171,1755029438781,-150.0,0.00023769,2]
[378807172,1755029438790,-8652.11111805,0.00023776,2]
[378807173,1755029438799,-2960.92662572,0.00023779,2]
[378807174,1755029438808,-14729.50921258,0.00023782,2]
[378807175,1755029438818,-150.0,0.00023791,2]
[378807176,1755029438828,-1000.0,0.00023818,2]
[378807177,1755029438838,-4000.0,0.00023841,4]
[378807178,1755029438847,-674.0,0.00023887,2]
[378807179,1755029438856,-1079.0,0.00023887,2]
[378807180,1755029438865,-11110.91078821,0.00023964,2]
[378807181,1755029438874,-151.0,0.00023968,7]
[378807182,1755029438884,-358.35952872,0.00023973,2]
[378807183,1755029438893,-1700.24749484,0.00024,2]
[378807184,1755029438902,-323.1287365,0.00024,2]
[378807185,1755029438911,-181.47604681,0.00024,7]
[378807186,1755029438920,-160.0,0.00024,10]
[378807187,1755029438929,-160.0,0.00024,7]
[378807188,1755029438938,-160.0,0.00024,10]
[378807189,1755029438947,-12673.43806534,0.00024,10]
[378807190,1755029438956,-160.0,0.00024,7]
[378807191,1755029438965,-160.0,0.00024,10]
[378807192,1755029438974,-1038.299999,0.00024,2]
[378807193,1755029438983,-12673.43806534,0.00024,10]
[378807194,1755029438992,-461.76100612,0.00024,10]
[378807195,1755029439001,-232.0176383,0.00024,7]
[378807196,1755029439010,-232.0176383,0.00024,10]
[378807197,1755029439019,-215.52532928,0.00024,10]
[378807198,1755029439029,-160.0,0.00024,7]
[378807199,1755029439038,-160.0,0.00024,10]
[378807200,1755029439047,-160.0,0.00024,7]
[378807201,1755029439056,-160.0,0.00024,10]
[378807202,1755029439065,-160.0,0.00024,7]
[378807203,1755029439075,-160.0,0.00024,10]
[378807204,1755029439084,-168.0,0.00024,7]
[378807205,1755029439093,-160.0,0.00024,7]
[378807206,1755029439102,-160.0,0.00024,10]
[378807207,1755029439113,-216.70963917,0.00024,7]
[378807208,1755029439122,-216.70963917,0.00024,10]
[378807209,1755029439131,-160.0,0.00024,7]
[378807210,1755029439140,-160.0,0.00024,10]
[378807211,1755029439149,-528.03329096,0.00024,10]
[378807212,1755029439162,-843.25559725,0.00024,7]
[378807213,1755029439171,-843.25559725,0.00024,10]
[378807214,1755029439180,-417.15472785,0.00024,10]
[378807215,1755029439189,-200.0,0.00024044,2]
[378807216,1755029439199,-153.0,0.00024052,2]
[378807217,1755029439209,-153.0,0.00024052,2]
[378807218,1755029439217,-153.0,0.00024052,2]
[378807219,1755029439228,-153.0,0.00024052,2]
[378807220,1755029439237,-153.0,0.00024052,2]
[378807221,1755029439246,-153.0,0.00024052,2]
[378807222,1755029439255,-153.0,0.00024052,2]
[378807223,1755029439264,-153.0,0.00024052,2]
[378807224,1755029439273,-153.0,0.00024052,2]
[378807225,1755029439282,-153.0,0.00024052,2]
[378807226,1755029439292,-153.0,0.00024052,2]
[378807227,1755029439301,-153.0,0.00024052,2]
[378807228,1755029439310,-153.0,0.00024052,2]
[378807229,1755029439319,-153.0,0.00024052,2]
[378807230,1755029439330,-153.0,0.00024052,2]
[378807231,1755029439339,-153.0,0.00024052,2]
[378807232,1755029439348,-153.0,0.00024052,2]
[378807233,1755029439357,-153.0,0.00024052,2]
[378807234,1755029439367,-153.0,0.00024052,2]
[378807235,1755029439376,-153.0,0.00024052,2]
[378807236,1755029439385,-153.0,0.00024052,2]
[378807237,1755029439394,-153.0,0.00024052,2]
[378807238,1755029439403,-153.0,0.00024052,2]
[378807239,1755029439412,-153.0,0.00024052,2]
[378807240,1755029439421,-153.0,0.00024052,2]
[378807241,1755029439430,-153.0,0.00024052,2]
[378807242,1755029439439,-153.0,0.00024052,2]
[378807243,1755029439448,-153.0,0.00024052,2]
[378807244,1755029439458,-153.0,0.00024052,2]
[378807245,1755029439468,-153.0,0.00024052,2]
[378807246,1755029439477,-153.0,0.00024052,2]
[378807247,1755029439487,-153.0,0.00024052,2]
[378807248,1755029439497,-153.0,0.00024052,2]
[378807249,1755029439507,-153.0,0.00024052,2]
[378807250,1755029439517,-153.0,0.00024052,2]
[378807251,1755029439526,-153.0,0.00024052,2]
[378807252,1755029439537,-153.0,0.00024052,2]
[378807253,1755029439546,-153.0,0.00024052,2]
[378807254,1755029439555,-153.0,0.00024052,2]
[378807255,1755029439564,-153.0,0.00024052,2]
[378807256,1755029439574,-153.0,0.00024053,2]
[378807257,1755029439584,-153.0,0.00024053,2]
[378807258,1755029439593,-153.0,0.00024053,2]
[378807259,1755029439603,-153.0,0.00024053,2]
[378807260,1755029439613,-153.0,0.00024053,2]
[378807261,1755029439622,-153.0,0.00024053,2]
[378807262,1755029439631,-153.0,0.00024053,2]
[378807263,1755029439641,-153.0,0.00024053,2]
[378807264,1755029439650,-153.0,0.00024053,2]
[378807265,1755029439660,-153.0,0.00024053,2]
[378807266,1755029439669,-153.0,0.00024053,2]
[378807267,1755029439679,-153.0,0.00024053,2]
[378807268,1755029439688,-153.0,0.00024053,2]
[378807269,1755029439697,-153.0,0.00024053,2]
[378807270,1755029439707,-153.0,0.00024053,2]